bitfinex/quotes_BTCUSD_20250118
["timestamp","ask_amount","ask_price","bid_price","bid_amount"]
[1737163289259,5.9e-07,104390.0,104380.0,0.94841047]
[1737163289469,5.9e-07,104390.0,104380.0,0.60292966]
[1737163289899,5.9e-07,104390.0,104380.0,0.62945925]
[1737163290102,5.9e-07,104390.0,104380.0,0.98976841]
[1737163290384,5.9e-07,104390.0,104380.0,1.08976841]
[1737163290580,5.9e-07,104390.0,104380.0,1.11871072]
[1737163291682,5.9e-07,104390.0,104380.0,1.2036075]
[1737163292658,5.9e-07,104390.0,104380.0,1.33089901]
[1737163294739,0.06440064,104420.0,104410.0,0.245776]
[1737163295213,0.06490866,104420.0,104410.0,0.245776]
[1737163295408,0.21961782,104420.0,104410.0,0.245776]
[1737163295594,0.06490866,104420.0,104410.0,0.245776]
[1737163295928,0.12037701,104420.0,104410.0,0.245776]
[1737163296134,0.21961782,104420.0,104410.0,0.245776]
[1737163297343,0.60602069,104420.0,104410.0,0.245776]
[1737163297543,0.65582069,104420.0,104410.0,0.245776]
[1737163298497,0.48397533,104420.0,104410.0,0.245776]
[1737163299318,0.49391741,104420.0,104410.0,0.245776]
[1737163299688,0.43844906,104420.0,104410.0,0.245776]
[1737163300404,0.42850698,104420.0,104410.0,0.245776]
[1737163301556,0.29986079,104420.0,104410.0,0.245776]
[1737163301716,0.35532914,104420.0,104410.0,0.245776]
[1737163302126,0.35532914,104420.0,104410.0,0.095776]
[1737163303818,0.33935579,104420.0,104410.0,0.095776]
[1737163305070,0.46800198,104420.0,104410.0,0.095776]
[1737163305963,0.63984734,104420.0,104410.0,0.095776]
[1737163308530,0.64074635,104420.0,104410.0,0.095776]
[1737163310379,0.76964173,104420.0,104410.0,0.095776]
[1737163310713,0.71417338,104420.0,104410.0,0.095776]
[1737163310932,0.76964173,104420.0,104410.0,0.095776]
[1737163311345,0.46915018,104420.0,104410.0,0.095776]
[1737163313032,0.41368183,104420.0,104410.0,0.095776]
[1737163313818,0.71470776,104420.0,104410.0,0.095776]
[1737163314996,0.58569665,104420.0,104410.0,0.095776]
[1737163315713,0.59563709,104420.0,104410.0,0.095776]
[1737163318952,0.72465115,104420.0,104410.0,0.095776]
[1737163319298,0.67485115,104420.0,104410.0,0.095776]
[1737163319841,0.67485115,104420.0,104410.0,0.0962039]
[1737163320037,0.76085849,104420.0,104410.0,0.0962039]
[1737163323129,0.75091805,104420.0,104410.0,0.0962039]
[1737163325358,0.8063864,104420.0,104410.0,0.0962039]
[1737163326997,0.591365,104420.0,104410.0,0.0962039]
[1737163330052,0.79210035,104420.0,104410.0,0.0004279]
[1737163330262,0.72698334,104420.0,104410.0,0.0962039]
[1737163330585,0.79210035,104420.0,104410.0,0.0962039]
[1737163331092,0.79210035,104420.0,104410.0,0.0004279]
[1737163331093,0.94251338,104420.0,104410.0,0.0004279]
[1737163331338,0.99798173,104420.0,104410.0,0.0004279]
[1737163331505,1.34559,104420.0,104410.0,0.0004279]
[1737163331708,1.24559,104420.0,104410.0,0.0004279]
[1737163331913,1.34559,104420.0,104410.0,0.0004279]
[1737163332122,1.37623999,104420.0,104410.0,0.0004279]
[1737163332474,0.6418102,104420.0,104410.0,0.0004279]
[1737163332885,0.223685,104400.0,104390.0,0.095794]
[1737163333090,0.33807751,104400.0,104390.0,0.095794]
[1737163333498,0.31167021,104400.0,104390.0,0.095794]
[1737163334523,0.52652045,104400.0,104390.0,0.095794]
[1737163335344,0.69836107,104400.0,104390.0,0.095794]
[1737163337027,0.82718943,104400.0,104390.0,0.095794]
[1737163337440,0.84656319,104400.0,104390.0,0.095794]
[1737163339251,0.71773483,104400.0,104390.0,0.095794]
[1737163341487,0.84649475,104400.0,104390.0,0.095794]
[1737163343102,0.84649475,104400.0,104380.0,0.3836179]
[1737163343301,0.84649475,104400.0,104380.0,0.2878219]
[1737163343302,0.26317021,104390.0,104380.0,0.2878219]
[1737163344365,0.47774824,104390.0,104380.0,0.2878219]
[1737163349715,0.34898832,104390.0,104380.0,0.2878219]
[1737163353508,0.26445892,104390.0,104380.0,0.2878219]
[1737163353691,0.31994271,104390.0,104380.0,0.2878219]
[1737163355413,0.18505892,104390.0,104380.0,0.2878219]
[1737163356361,0.09924081,104390.0,104380.0,0.2878219]
[1737163357960,0.39896182,104400.0,104380.0,0.1920229]
[1737163358165,0.44870263,104400.0,104390.0,0.095794]
[1737163358750,0.31381884,104400.0,104390.0,0.095794]
[1737163359150,0.36930263,104400.0,104390.0,0.095794]
[1737163360414,0.42478642,104400.0,104390.0,0.095794]
[1737163360718,0.21020839,104400.0,104390.0,0.095794]
[1737163361256,0.2341246,104400.0,104390.0,0.095794]
[1737163361468,0.3754265,104400.0,104390.0,0.095794]
[1737163364994,0.50418642,104400.0,104390.0,0.095794]
[1737163366867,0.44870263,104400.0,104390.0,0.095794]
[1737163367594,0.31381884,104400.0,104390.0,0.095794]
[1737163367760,0.21457803,104400.0,104390.0,0.226394]
[1737163368858,0.08581811,104400.0,104390.0,0.226394]
[1737163371282,0.21457803,104400.0,104390.0,0.226394]
[1737163372114,0.38641865,104400.0,104390.0,0.23615132]
[1737163373486,0.08581811,104400.0,104390.0,0.23615132]
[1737163374883,0.21457803,104400.0,104390.0,0.23615132]
[1737163377026,0.38641865,104400.0,104390.0,0.23615132]
[1737163378235,0.38641865,104400.0,104390.0,0.23657932]
[1737163379178,0.21457803,104400.0,104390.0,0.23657932]
[1737163384989,0.21457803,104400.0,104390.0,0.38657932]
[1737163386098,0.08581811,104400.0,104390.0,0.38657932]
[1737163388298,0.06401811,104400.0,104390.0,0.38657932]
[1737163389313,0.57183338,104410.0,104400.0,0.095785]
[1737163389473,0.67107419,104410.0,104400.0,0.095785]
[1737163392837,0.51634959,104410.0,104400.0,0.245785]
[1737163393439,0.30149935,104410.0,104400.0,0.245785]
[1737163393988,0.35698314,104410.0,104400.0,0.245785]
[1737163394527,0.0563826,104410.0,104400.0,0.245785]
[1737163395673,0.18514252,104410.0,104400.0,0.245785]
[1737163396248,0.12965873,104410.0,104400.0,0.245785]
[1737163398255,0.12965873,104410.0,104400.0,0.321185]
[1737163399836,0.08683878,104410.0,104400.0,0.321185]
[1737163401630,0.08683878,104410.0,104400.0,0.321613]
[1737163403953,0.08683878,104410.0,104400.0,0.37709679]
[1737163404519,0.00089881,104410.0,104400.0,0.37709679]
[1737163406574,0.00089881,104410.0,104400.0,0.321613]
[1737163408675,0.00089881,104410.0,104400.0,0.251613]
[1737163409889,0.08683878,104410.0,104400.0,0.251613]
[1737163410089,0.08683878,104410.0,104400.0,0.248613]
[1737163410729,0.00089881,104410.0,104400.0,0.248613]
[1737163423379,0.00089881,104410.0,104400.0,0.243213]
[1737163423689,0.00089881,104410.0,104400.0,0.248613]
[1737163425971,0.00089881,104410.0,104400.0,0.24554669]
[1737163433546,0.00089881,104410.0,104400.0,0.30103048]
[1737163433723,0.00089881,104410.0,104400.0,0.38393048]
[1737163433924,0.00089881,104410.0,104400.0,0.48317129]
[1737163434108,0.00089881,104410.0,104400.0,0.58755508]
[1737163434349,0.00089881,104410.0,104400.0,0.61659889]
[1737163435173,8.1e-07,104410.0,104400.0,1.16199889]
[1737163436792,8.1e-07,104410.0,104400.0,1.54397392]
[1737163437938,8.1e-07,104410.0,104400.0,1.75670341]
[1737163438555,8.4e-07,104420.0,104410.0,0.915376]
[1737163438701,8.4e-07,104420.0,104410.0,1.1546282]
[1737163439114,8.4e-07,104420.0,104410.0,0.99914441]
[1737163439328,8.4e-07,104420.0,104410.0,1.09914441]
[1737163439951,8.4e-07,104420.0,104410.0,1.61043711]
[1737163440740,8.4e-07,104420.0,104410.0,1.69625652]
[1737163442264,8.4e-07,104420.0,104410.0,1.59625652]
[1737163442463,8.4e-07,104420.0,104410.0,1.69625652]
[1737163442623,8.4e-07,104420.0,104410.0,1.49299451]
[1737163443697,8.4e-07,104420.0,104410.0,1.39299451]
[1737163443877,8.4e-07,104420.0,104410.0,1.49299451]
[1737163444307,8.4e-07,104420.0,104410.0,1.39299451]
[1737163444509,8.4e-07,104420.0,104410.0,1.32320777]
[1737163447585,8.4e-07,104420.0,104410.0,1.22320777]
[1737163447791,8.4e-07,104420.0,104410.0,1.0944313]
[1737163448143,8.4e-07,104420.0,104410.0,1.1944313]
[1737163448358,8.4e-07,104420.0,104410.0,1.1948594]
[1737163450102,8.4e-07,104420.0,104410.0,0.8476594]
[1737163450309,8.4e-07,104420.0,104410.0,0.92397559]
[1737163450999,8.4e-07,104420.0,104410.0,0.82397559]
[1737163451692,8.4e-07,104420.0,104410.0,0.73815618]
[1737163452175,8.4e-07,104420.0,104410.0,0.83815618]
[1737163456652,8.4e-07,104420.0,104410.0,0.91705618]
[1737163457057,8.4e-07,104420.0,104410.0,0.94597542]
[1737163457750,8.4e-07,104420.0,104410.0,1.12445921]
[1737163457922,8.4e-07,104420.0,104410.0,1.05879163]
[1737163458122,8.4e-07,104420.0,104410.0,1.16975921]
[1737163458974,9.4e-07,104430.0,104420.0,0.468767]
[1737163459170,0.000428,104440.0,104430.0,0.095757]
[1737163459372,0.00047878,104440.0,104430.0,0.25143892]
[1737163459616,0.00047878,104440.0,104430.0,0.2504816]
[1737163461270,0.00047878,104440.0,104430.0,0.4004816]
[1737163463319,0.00047878,104440.0,104430.0,0.41029272]
[1737163463497,0.00047878,104440.0,104430.0,0.43920053]
[1737163463931,0.00047878,104440.0,104430.0,0.76160053]
[1737163464340,0.00047878,104440.0,104430.0,1.11898432]
[1737163464558,7.8e-07,104440.0,104430.0,1.11898432]
[1737163465900,0.0004285,104460.0,104450.0,0.095739]
[1737163466058,0.0004285,104460.0,104450.0,0.40678074]
[1737163466262,0.0004285,104460.0,104450.0,0.4058236]
[1737163466662,5e-07,104460.0,104450.0,0.5058236]
[1737163466864,5e-07,104460.0,104450.0,0.53472087]
[1737163467472,5e-07,104460.0,104450.0,0.53471898]
[1737163468271,5e-07,104460.0,104450.0,0.5058236]
[1737163470060,5e-07,104460.0,104450.0,0.8282236]
[1737163472238,5e-07,104460.0,104450.0,0.67273981]
[1737163472506,0.1263005,104460.0,104450.0,0.7282236]
[1737163472727,0.1263005,104460.0,104450.0,0.67273981]
[1737163472972,0.1263005,104460.0,104450.0,0.4277018]
[1737163473215,0.1263005,104460.0,104450.0,0.4330618]
[1737163473520,0.1263005,104460.0,104450.0,0.4277018]
[1737163473740,0.2810251,104460.0,104450.0,0.095739]
[1737163474885,0.33650889,104460.0,104450.0,0.095739]
[1737163475354,0.30997767,104460.0,104450.0,0.095739]
[1737163477771,0.39591764,104460.0,104450.0,0.095739]
[1737163478531,0.676084,104460.0,104450.0,0.095739]
[1737163478908,0.80484392,104460.0,104450.0,0.095739]
[1737163479847,0.97668454,104460.0,104450.0,0.095739]
[1737163480043,0.89224818,104460.0,104450.0,0.095739]
[1737163480988,1.10709842,104460.0,104450.0,0.095739]
[1737163483724,1.10709842,104460.0,104450.0,0.09663759]
[1737163484372,1.02115845,104460.0,104450.0,0.09663759]
[1737163484518,0.29538842,104460.0,104450.0,0.09663759]
[1737163485427,0.27422997,104460.0,104450.0,0.09663759]
[1737163487450,0.40122997,104460.0,104450.0,0.09663759]
[1737163487997,0.30549997,104460.0,104450.0,0.09663759]
[1737163488361,0.22106361,104460.0,104450.0,0.09663759]
[1737163495698,0.22149151,104460.0,104450.0,0.09663759]
[1737163497610,0.27689647,104460.0,104450.0,0.09663759]
[1737163497981,0.33230143,104460.0,104450.0,0.09663759]
[1737163500154,0.27689647,104460.0,104450.0,0.09663759]
[1737163503635,0.22149151,104460.0,104450.0,0.09663759]
[1737163503892,0.27689647,104460.0,104450.0,0.09663759]
[1737163505064,0.0004279,104460.0,104450.0,0.09663759]
[1737163509896,0.0004279,104460.0,104450.0,1.44493759]
[1737163510349,0.0004279,104460.0,104450.0,1.54493759]
[1737163512281,0.0004279,104460.0,104450.0,1.55468682]
[1737163514455,0.0004279,104460.0,104450.0,1.63668682]
[1737163515021,0.0004279,104460.0,104450.0,1.69209178]
[1737163515248,0.0004279,104460.0,104450.0,1.79133259]
[1737163515626,0.0004279,104460.0,104450.0,1.88592763]
[1737163518760,0.05583286,104460.0,104450.0,1.71004682]
[1737163519296,0.0004279,104460.0,104450.0,1.71004682]
[1737163519892,0.0004279,104460.0,104450.0,1.70029759]
[1737163527272,0.0004279,104460.0,104450.0,1.8815384]
[1737163528854,0.0004279,104460.0,104450.0,1.98634336]
[1737163530130,0.0004279,104460.0,104450.0,2.01533904]
[1737163530738,0.0004279,104460.0,104450.0,1.98634336]
[1737163538887,0.0004279,104460.0,104450.0,2.0153072]
[1737163539795,0.0004279,104460.0,104450.0,2.10112661]
[1737163540520,0.0004279,104460.0,104450.0,2.07216277]
[1737163542899,0.0004279,104460.0,104450.0,1.98634336]
[1737163544368,0.0004279,104460.0,104450.0,2.01530926]
[1737163544792,0.0004279,104460.0,104450.0,2.33770926]
[1737163545150,0.0004279,104460.0,104450.0,2.42352867]
[1737163545416,9e-07,104460.0,104450.0,2.42352867]
[1737163545585,9e-07,104460.0,104450.0,2.39456277]
[1737163545845,9e-07,104460.0,104450.0,2.42352776]
[1737163546025,9e-07,104460.0,104450.0,2.57893272]
[1737163547321,9e-07,104460.0,104450.0,2.65230423]
[1737163547506,9e-07,104460.0,104450.0,2.55230423]
[1737163547707,9e-07,104460.0,104450.0,2.65230423]
[1737163551247,9e-07,104460.0,104450.0,2.52352776]
[1737163554591,9e-07,104460.0,104450.0,2.42352776]
[1737163554792,9e-07,104460.0,104450.0,2.4681228]
[1737163554995,9e-07,104460.0,104450.0,2.36316277]
[1737163555204,9e-07,104460.0,104450.0,2.26316277]
[1737163555425,9e-07,104460.0,104450.0,2.29213205]
[1737163555638,9e-07,104460.0,104450.0,2.23672709]
[1737163555844,9e-07,104460.0,104450.0,2.20775781]
[1737163556017,9e-07,104460.0,104450.0,2.26316277]
[1737163556645,9e-07,104460.0,104450.0,2.17734336]
[1737163557300,0.0751293,104470.0,104460.0,0.19573]
[1737163560977,0.0751293,104470.0,104460.0,0.10109]
[1737163560978,0.1234293,104470.0,104460.0,0.10109]
[1737163561219,0.1234293,104470.0,104460.0,0.25109]
[1737163561466,0.17883426,104470.0,104460.0,0.09573]
[1737163561703,0.1234293,104470.0,104460.0,0.09573]
[1737163562018,0.1234293,104470.0,104460.0,0.24573]
[1737163565489,0.1234293,104470.0,104460.0,0.2466288]
[1737163565642,0.1238573,104470.0,104460.0,0.2466288]
[1737163566252,0.1238573,104470.0,104460.0,0.25602063]
[1737163577513,0.000428,104470.0,104460.0,0.35602063]
[1737163580388,0.000428,104470.0,104460.0,0.41142559]
[1737163580789,0.000428,104470.0,104460.0,0.35602063]
[1737163581199,0.000428,104470.0,104460.0,0.41142559]
[1737163581401,0.000428,104470.0,104460.0,0.35602063]
[1737163581711,0.000428,104470.0,104460.0,0.41142559]
[1737163581940,0.000428,104470.0,104460.0,0.35602063]
[1737163584151,0.000428,104470.0,104460.0,0.36138063]
[1737163598087,0.000428,104470.0,104460.0,0.35602063]
[1737163598248,0.000428,104470.0,104460.0,0.36138063]
[1737163606565,0.000428,104470.0,104460.0,0.26138063]
[1737163606795,0.000428,104470.0,104460.0,0.36138063]
[1737163607419,0.000428,104470.0,104460.0,0.26138063]
[1737163607643,0.000428,104470.0,104460.0,0.36138063]
[1737163607916,0.000428,104470.0,104460.0,0.26138063]
[1737163608127,0.000428,104470.0,104460.0,0.36138063]
[1737163623699,0.000428,104470.0,104460.0,0.35602063]
[1737163623959,0.000428,104470.0,104460.0,0.36138063]
[1737163626868,0.08618414,104470.0,104460.0,0.36138063]
[1737163627719,0.16118414,104470.0,104460.0,0.36138063]
[1737163630462,0.075428,104470.0,104460.0,0.36138063]
[1737163631761,0.21681487,104470.0,104460.0,0.25602063]
[1737163631941,0.36255568,104470.0,104460.0,0.0966288]
[1737163632853,0.79246526,104470.0,104460.0,0.0966288]
[1737163633675,0.66349239,104470.0,104460.0,0.0966288]
[1737163635884,0.80191938,104470.0,104460.0,0.0966288]
[1737163637005,0.82125601,104470.0,104460.0,0.0966288]
[1737163637921,0.79220969,104470.0,104460.0,0.0966288]
[1737163638374,0.87798566,104470.0,104460.0,0.0966288]
[1737163640527,0.66303087,104470.0,104460.0,0.0966288]
[1737163641907,0.60762591,104470.0,104460.0,0.0966288]
[1737163642122,0.66303087,104470.0,104460.0,0.0966288]
[1737163643162,0.3868851,104470.0,104460.0,0.0966288]
[1737163643932,0.3868851,104470.0,104460.0,0.3466288]
[1737163644140,0.3868851,104470.0,104460.0,0.48393376]
[1737163644722,0.1291453,104470.0,104460.0,0.48393376]
[1737163644942,0.000428,104470.0,104460.0,0.48393376]
[1737163645347,0.000428,104470.0,104460.0,0.68667953]
[1737163650188,0.000428,104470.0,104460.0,0.63127457]
[1737163650342,0.000428,104470.0,104460.0,0.68667953]
[1737163652481,0.000428,104470.0,104460.0,0.63127457]
[1737163652693,0.000428,104470.0,104460.0,0.95367457]
[1737163653297,0.000428,104470.0,104460.0,1.00907953]
[1737163659691,0.000428,104470.0,104460.0,0.95367457]
[1737163660582,0.000428,104470.0,104460.0,1.00907953]
[1737163663488,0.000428,104470.0,104460.0,1.01443953]
[1737163667008,0.000428,104470.0,104460.0,0.69203953]
[1737163668897,0.000428,104470.0,104460.0,0.71503953]
[1737163669246,0.000428,104470.0,104460.0,0.74398952]
[1737163670437,0.000428,104470.0,104460.0,0.8300167]
[1737163671072,0.00089859,104480.0,104470.0,0.345721]
[1737163671455,0.0010508,104480.0,104470.0,0.62436677]
[1737163671653,0.0010508,104480.0,104470.0,0.67977173]
[1737163671903,0.0010508,104480.0,104470.0,0.62436677]
[1737163672112,8e-07,104480.0,104470.0,1.34227173]
[1737163672541,8e-07,104480.0,104470.0,1.44227173]
[1737163676300,8e-07,104480.0,104470.0,1.47124389]
[1737163676926,8e-07,104480.0,104470.0,0.93174389]
[1737163678913,8e-07,104480.0,104470.0,0.94149383]
[1737163681345,0.0004288,104480.0,104470.0,0.94149383]
[1737163681545,8e-07,104480.0,104470.0,0.94149383]
[1737163682550,8e-07,104480.0,104470.0,1.48099383]
[1737163685460,8e-07,104480.0,104470.0,1.56702101]
[1737163685667,8e-07,104480.0,104470.0,1.51161605]
[1737163687179,8e-07,104480.0,104470.0,1.56702101]
[1737163688697,8e-07,104480.0,104470.0,1.69606179]
[1737163689367,8e-07,104480.0,104470.0,1.41485187]
[1737163689568,8e-07,104480.0,104470.0,1.23825187]
[1737163689691,8e-07,104480.0,104470.0,1.29901683]
[1737163690129,8e-07,104480.0,104470.0,1.27004467]
[1737163690343,0.0807008,104480.0,104470.0,1.21463971]
[1737163690854,0.0807008,104480.0,104470.0,0.99957175]
[1737163692944,0.0807008,104480.0,104470.0,1.00047055]
[1737163694495,0.0807008,104480.0,104470.0,0.46097055]
[1737163696163,0.0807008,104480.0,104470.0,0.51637551]
[1737163698128,8e-07,104480.0,104470.0,0.51637551]
[1737163700051,8e-07,104480.0,104470.0,0.54537265]
[1737163700856,8e-07,104480.0,104470.0,0.51637551]
[1737163701486,8e-07,104480.0,104470.0,0.60240269]
[1737163702511,8e-07,104480.0,104470.0,0.51637551]
[1737163703922,8e-07,104480.0,104470.0,0.54538257]
[1737163704155,8e-07,104480.0,104470.0,0.62838257]
[1737163706069,8e-07,104480.0,104470.0,0.84345053]
[1737163712031,0.31230541,104510.0,104500.0,0.7936]
[1737163712240,0.08976086,104520.0,104510.0,0.549784]
[1737163712481,0.25884476,104530.0,104520.0,0.449775]
[1737163712742,0.28118897,104540.0,104530.0,0.568666]
[1737163712896,0.00301845,104540.0,104530.0,0.9266371]
[1737163713120,0.33146971,104560.0,104550.0,0.550948]
[1737163713305,0.33162191,104560.0,104550.0,0.94541075]
[1737163713507,0.0001522,104560.0,104550.0,0.94856282]
[1737163713710,0.0001522,104560.0,104550.0,1.03270823]
[1737163713944,0.0001522,104560.0,104550.0,0.97543407]
[1737163714082,2e-07,104560.0,104550.0,0.97543407]
[1737163714293,2e-07,104560.0,104550.0,0.94642701]
[1737163714505,0.06048429,104600.0,104590.0,0.095611]
[1737163714712,0.06048429,104600.0,104590.0,0.250971]
[1737163714713,0.06063635,104600.0,104590.0,0.250971]
[1737163715529,0.06063635,104600.0,104590.0,0.90916558]
[1737163715779,0.06063635,104600.0,104590.0,1.07986952]
[1737163716397,0.06063635,104600.0,104590.0,0.33622784]
[1737163717400,0.06063635,104600.0,104590.0,0.250971]
[1737163717788,0.06106415,104600.0,104590.0,0.250971]
[1737163721704,0.06106415,104600.0,104590.0,0.245611]
[1737163723766,0.00057986,104600.0,104590.0,0.42975641]
[1737163723899,0.08157502,104640.0,104590.0,0.60623141]
[1737163724105,0.47012622,104630.0,104610.0,0.258095]
[1737163725598,0.095585,104620.0,104600.0,0.430181]
[1737163725812,0.19482581,104620.0,104600.0,0.430181]
[1737163726243,0.09924081,104610.0,104600.0,0.258108]
[1737163726867,0.17724081,104610.0,104600.0,0.258108]
[1737163727120,0.17724081,104610.0,104600.0,0.086035]
[1737163727318,0.35697922,104610.0,104590.0,0.680221]
[1737163727487,0.35697922,104610.0,104590.0,0.594177]
[1737163727695,0.35697922,104610.0,104590.0,0.680221]
[1737163727913,0.54816622,104610.0,104590.0,0.25813]
[1737163728160,0.54816622,104610.0,104580.0,0.349576]
[1737163728161,0.08414541,104600.0,104580.0,0.349576]
[1737163728391,0.18338622,104600.0,104590.0,0.08605]
[1737163733262,0.24338622,104600.0,104590.0,0.08605]
[1737163735612,0.15924081,104600.0,104590.0,0.08605]
[1737163735816,0.53020322,104600.0,104580.0,0.267723]
[1737163736051,0.17724081,104590.0,104580.0,0.26787506]
[1737163737133,0.26138622,104590.0,104580.0,0.26787506]
[1737163739883,0.35699722,104590.0,104580.0,0.09576806]
[1737163740139,0.26138622,104590.0,104580.0,0.09576806]
[1737163740879,0.35699722,104590.0,104580.0,0.09576806]
[1737163741003,0.26138622,104590.0,104580.0,0.09576806]
[1737163742256,0.35699722,104590.0,104580.0,0.09576806]
[1737163742594,0.26138622,104590.0,104580.0,0.09576806]
[1737163742809,0.26138622,104590.0,104580.0,0.0966656]
[1737163743249,0.35699722,104590.0,104580.0,0.0966656]
[1737163743466,0.26138622,104590.0,104580.0,0.0966656]
[1737163745184,0.17724081,104590.0,104580.0,0.0966656]
[1737163746719,0.26138622,104590.0,104580.0,0.0966656]
[1737163747731,0.17724081,104590.0,104580.0,0.0966656]
[1737163750325,0.26138622,104590.0,104580.0,0.0966656]
[1737163750523,0.17724081,104590.0,104580.0,0.0966656]
[1737163752308,0.27285181,104590.0,104580.0,0.0010496]
[1737163753722,0.35699722,104590.0,104580.0,0.0010496]
[1737163755695,0.27285181,104590.0,104580.0,0.0010496]
[1737163756889,0.35699722,104590.0,104580.0,0.0010496]
[1737163757094,0.54835246,104590.0,104580.0,0.0010496]
[1737163757262,0.46420705,104590.0,104580.0,0.0010496]
[1737163759653,0.37999722,104590.0,104580.0,0.0010496]
[1737163760680,0.37999722,104590.0,104580.0,0.0024896]
[1737163763191,0.46414263,104590.0,104580.0,0.0024896]
[1737163763988,0.37999722,104590.0,104580.0,0.0024896]
[1737163770929,0.46414263,104590.0,104580.0,0.0024896]
[1737163771139,0.56338344,104590.0,104580.0,0.0024896]
[1737163772500,0.71338344,104590.0,104580.0,0.0024896]
[1737163772924,1.09627809,104590.0,104580.0,0.0024896]
[1737163773183,1.24217809,104590.0,104580.0,0.0024896]
[1737163774493,1.07268967,104590.0,104580.0,0.0024896]
[1737163775396,0.97208967,104590.0,104580.0,0.0024896]
[1737163779354,1.01035067,104590.0,104580.0,0.0024896]
[1737163781172,1.18178451,104590.0,104580.0,0.0024896]
[1737163785470,1.17940986,104590.0,104580.0,0.0024896]
[1737163792512,1.00797602,104590.0,104580.0,0.0024896]
[1737163793463,1.10857602,104590.0,104580.0,0.0024896]
[1737163794771,1.00797602,104590.0,104580.0,0.0024896]
[1737163794992,0.95267063,104590.0,104580.0,0.0024896]
[1737163796661,1.00797602,104590.0,104580.0,0.0024896]
[1737163797103,0.95267063,104590.0,104580.0,0.0024896]
[1737163797416,0.99535187,104590.0,104580.0,0.0024896]
[1737163798357,1.05065726,104590.0,104580.0,0.0024896]
[1737163798588,0.99535187,104590.0,104580.0,0.0024896]
[1737163798786,1.05065726,104590.0,104580.0,0.0024896]
[1737163799402,0.99535187,104590.0,104580.0,0.0024896]
[1737163800475,1.15125726,104590.0,104580.0,0.0024896]
[1737163802895,1.45125726,104590.0,104580.0,0.0024896]
[1737163803520,1.45125726,104590.0,104580.0,6e-07]
[1737163803723,1.89492146,104590.0,104580.0,6e-07]
[1737163803924,0.28455417,104560.0,104550.0,0.1289]
[1737163804219,0.48303579,104560.0,104550.0,0.1289]
[1737163805989,0.74052035,104560.0,104550.0,0.1289]
[1737163806425,0.64127954,104560.0,104550.0,0.1289]
[1737163808339,0.38379498,104560.0,104550.0,0.1289]
[1737163810962,0.38379498,104560.0,104550.0,0.12979754]
[1737163811742,0.39742433,104560.0,104550.0,0.12979754]
[1737163812320,0.61183796,104560.0,104550.0,0.12979754]
[1737163812473,0.70099831,104560.0,104550.0,0.12979754]
[1737163813233,0.80159831,104560.0,104550.0,0.12979754]
[1737163813441,0.70099831,104560.0,104550.0,0.12979754]
[1737163814430,0.48658468,104560.0,104550.0,0.12979754]
[1737163815941,0.50574988,104560.0,104550.0,0.12979754]
[1737163816348,0.50574988,104560.0,104550.0,0.04929754]
[1737163816349,0.65574988,104560.0,104550.0,0.04929754]
[1737163817285,0.66002771,104560.0,104550.0,0.04929754]
[1737163817626,0.66002771,104560.0,104550.0,0.00089754]
[1737163818027,1.31811227,104560.0,104550.0,0.00089754]
[1737163818276,1.40121227,104560.0,104550.0,0.00089754]
[1737163819520,1.57654582,104560.0,104550.0,5.4e-07]
[1737163819860,0.5736,104550.0,104530.0,0.048]
[1737163820060,0.38381398,104540.0,104530.0,0.0481522]
[1737163821208,0.38464245,104540.0,104530.0,0.0481522]
[1737163822118,0.59889925,104540.0,104530.0,0.0481522]
[1737163823386,0.69949925,104540.0,104530.0,0.0481522]
[1737163823594,0.87083238,104540.0,104530.0,0.0481522]
[1737163823769,0.97007319,104540.0,104530.0,0.0481522]
[1737163824764,0.58131621,104540.0,104530.0,0.1251522]
[1737163824971,0.69192699,104540.0,104530.0,0.1251522]
[1737163825316,0.71492699,104540.0,104530.0,0.1251522]
[1737163825730,0.54345043,104540.0,104530.0,0.1251522]
[1737163826333,0.56232534,104540.0,104530.0,0.1251522]
[1737163826949,0.43385732,104540.0,104530.0,0.1251522]
[1737163827161,0.47748396,104540.0,104530.0,0.1251522]
[1737163827554,0.4511966,104540.0,104530.0,0.1251522]
[1737163827778,0.46443351,104540.0,104530.0,0.1251522]
[1737163828132,0.46782547,104540.0,104530.0,0.1251522]
[1737163828335,0.46782547,104540.0,104530.0,0.1201522]
[1737163829542,0.46360504,104540.0,104530.0,0.1201522]
[1737163831557,0.4199784,104540.0,104530.0,0.1201522]
[1737163834263,0.71977955,104540.0,104530.0,0.12105079]
[1737163834558,0.72020745,104540.0,104530.0,0.12105079]
[1737163835263,0.54887432,104540.0,104530.0,0.12105079]
[1737163837264,0.72020745,104540.0,104530.0,0.12105079]
[1737163837472,0.81944826,104540.0,104530.0,0.12105079]
[1737163839689,0.81944826,104540.0,104530.0,0.04405079]
[1737163840135,0.90377168,104540.0,104530.0,0.04405079]
[1737163840512,0.90377168,104540.0,104530.0,0.00105079]
[1737163840714,1.05377168,104540.0,104530.0,0.00105079]
[1737163841173,0.92543334,104540.0,104530.0,0.00105079]
[1737163849476,0.92286032,104540.0,104530.0,0.00105079]
[1737163850618,1.36633784,104540.0,104530.0,0.00105079]
[1737163851661,0.92286032,104540.0,104530.0,0.00105079]
[1737163851865,0.82361951,104540.0,104530.0,0.00105079]
[1737163852082,0.82361951,104540.0,104530.0,0.07845079]
[1737163854030,0.82361951,104540.0,104490.0,0.07829754]
[1737163854031,0.238693,104500.0,104490.0,0.07829754]
[1737163854277,0.56081823,104500.0,104490.0,0.07829754]
[1737163854501,0.61289291,104500.0,104490.0,0.07829754]
[1737163855173,0.57846825,104500.0,104490.0,0.07829754]
[1737163855427,0.57846825,104500.0,104490.0,0.07880512]
[1737163855901,0.83557641,104500.0,104490.0,0.07880512]
[1737163856630,0.83557641,104500.0,104490.0,0.00140512]
[1737163857438,0.83836555,104500.0,104490.0,0.00140512]
[1737163857644,0.93896555,104500.0,104490.0,1.2e-07]
[1737163857875,1.31357338,104500.0,104490.0,1.2e-07]
[1737163858319,0.268702,104490.0,104480.0,0.02888587]
[1737163858540,0.5516151,104490.0,104480.0,0.02888587]
[1737163859198,0.5516151,104490.0,104480.0,0.02884587]
[1737163860076,1.28295463,104490.0,104480.0,0.02884587]
[1737163861010,1.28831463,104490.0,104480.0,0.02884587]
[1737163861423,1.48517482,104490.0,104480.0,8.7e-07]
[1737163861559,0.118721,104470.0,104460.0,0.1249988]
[1737163861768,0.38682477,104470.0,104460.0,0.12515101]
[1737163862382,0.64303768,104470.0,104460.0,0.12515101]
[1737163864446,0.60011602,104470.0,104460.0,0.12515101]
[1737163864864,0.69935683,104470.0,104460.0,0.12515101]
[1737163865067,0.84935683,104470.0,104460.0,0.12515101]
[1737163865449,0.89227849,104470.0,104460.0,0.04775101]
[1737163867051,0.91132471,104470.0,104460.0,0.04775101]
[1737163867474,0.8120839,104470.0,104460.0,0.04775101]
[1737163869235,0.8125123,104470.0,104460.0,0.04775101]